bitfinex/quotes_BTCUSD_20230101
["timestamp","ask_amount","ask_price","bid_price","bid_amount"]
[1672615235719,0.75997834,16642.0,16641.0,2.59324618]
[1672615236648,0.63097834,16642.0,16641.0,2.59124618]
[1672615236910,0.75997834,16642.0,16641.0,2.59324618]
[1672615237169,0.63097834,16642.0,16641.0,2.59124618]
[1672615237432,0.75997834,16642.0,16641.0,2.59324618]
[1672615237687,0.63097834,16642.0,16641.0,2.59124618]
[1672615237949,0.75997834,16642.0,16641.0,2.59324618]
[1672615238214,0.63097834,16642.0,16641.0,2.59124618]
[1672615238476,0.73997834,16642.0,16641.0,2.59324618]
[1672615239691,0.73997834,16642.0,16641.0,2.34105107]
[1672615242145,0.73997834,16642.0,16641.0,1.64105107]
[1672615242701,0.73997834,16642.0,16641.0,2.34105107]
[1672615248789,0.73997834,16642.0,16641.0,1.64105107]
[1672615249780,0.73997834,16642.0,16641.0,2.34105107]
[1672615251096,0.55959843,16642.0,16641.0,2.34105107]
[1672615254748,0.73997834,16642.0,16641.0,2.34105107]
[1672615255802,0.73997834,16642.0,16641.0,1.6409783]
[1672615256054,0.73997834,16642.0,16641.0,1.78820967]
[1672615256298,0.92017826,16642.0,16641.0,1.78820967]
[1672615256558,0.92017826,16642.0,16641.0,2.48820967]
[1672615256820,0.55961595,16642.0,16641.0,2.48820967]
[1672615258592,0.55961595,16642.0,16641.0,2.3409783]
[1672615258852,0.92018794,16642.0,16641.0,2.3409783]
[1672615259339,0.73997834,16642.0,16641.0,2.3409783]
[1672615260064,0.73997834,16642.0,16641.0,2.1598783]
[1672615260327,0.73997834,16642.0,16641.0,1.5397583]
[1672615261085,0.92020661,16642.0,16641.0,1.5397583]
[1672615261652,0.92022562,16642.0,16641.0,1.5397583]
[1672615261915,0.73997834,16642.0,16641.0,1.5397583]
[1672615262722,0.92022555,16642.0,16641.0,1.5397583]
[1672615263243,0.73997834,16642.0,16641.0,1.5397583]
[1672615265485,0.73997834,16642.0,16641.0,0.8397583]
[1672615266486,0.73997834,16642.0,16641.0,1.5397583]
[1672615266733,0.73997834,16642.0,16641.0,2.1598783]
[1672615269629,0.92042931,16642.0,16641.0,2.1598783]
[1672615272488,0.92042931,16642.0,16641.0,1.4598783]
[1672615273508,0.92042931,16642.0,16641.0,2.1598783]
[1672615278277,0.559867,16642.0,16641.0,2.1598783]
[1672615279504,0.559867,16642.0,16641.0,1.4598783]
[1672615279505,0.92082691,16642.0,16641.0,1.4598783]
[1672615279789,0.92082691,16642.0,16641.0,2.1598783]
[1672615280309,0.92082691,16642.0,16641.0,2.15976437]
[1672615284885,0.559867,16642.0,16641.0,1.53964437]
[1672615286383,0.559867,16642.0,16641.0,2.15976437]
[1672615286905,0.559867,16642.0,16641.0,1.53964437]
[1672615291780,0.109,16642.0,16641.0,1.53964437]
[1672615292600,0.56027641,16642.0,16641.0,1.53964437]
[1672615292843,0.109,16642.0,16641.0,1.53964437]
[1672615293095,0.56027668,16642.0,16641.0,1.53964437]
[1672615293437,0.109,16642.0,16641.0,1.53964437]
[1672615294133,0.56026051,16642.0,16641.0,1.53964437]
[1672615294621,0.109,16642.0,16641.0,1.53964437]
[1672615294862,0.56026022,16642.0,16641.0,1.53964437]
[1672615295109,0.109,16642.0,16641.0,1.53964437]
[1672615297349,0.24421943,16642.0,16641.0,0.93136616]
[1672615297601,2.2906532,16642.0,16641.0,0.75116616]
[1672615297855,1.7494911,16642.0,16641.0,0.75116616]
[1672615298361,2.24906656,16642.0,16641.0,0.75116616]
[1672615298875,1.7494911,16642.0,16641.0,0.75116616]
[1672615299376,2.29071259,16642.0,16641.0,0.75116616]
[1672615299631,1.7494911,16642.0,16641.0,0.75116616]
[1672615300660,2.29070001,16642.0,16641.0,0.75116616]
[1672615300916,1.7494911,16642.0,16641.0,0.75116616]
[1672615301216,2.29069987,16642.0,16641.0,0.75116616]
[1672615302948,2.29069987,16642.0,16641.0,0.75109361]
[1672615305767,2.29069987,16642.0,16641.0,0.05109361]
[1672615306795,2.29069987,16642.0,16641.0,0.75109361]
[1672615312951,2.29069987,16642.0,16641.0,0.05109361]
[1672615315003,2.29069987,16642.0,16641.0,0.75109361]
[1672615317013,1.39069987,16642.0,16641.0,0.75109361]
[1672615318784,0.8494911,16642.0,16641.0,0.75109361]
[1672615319618,1.39069987,16642.0,16641.0,0.75109361]
[1672615321147,1.39069987,16642.0,16641.0,0.05109361]
[1672615321404,1.39069987,16642.0,16641.0,0.75109361]
[1672615325221,1.39069987,16642.0,16641.0,0.75102063]
[1672615328847,1.39069987,16642.0,16641.0,0.05102063]
[1672615329091,0.8494911,16642.0,16641.0,0.05102063]
[1672615329844,0.8494911,16642.0,16641.0,0.75102063]
[1672615339016,0.84941038,16642.0,16641.0,0.75102063]
[1672615339485,1.80891928,16642.0,16641.0,0.75102063]
[1672615340051,1.80891928,16642.0,16641.0,1.42711632]
[1672615340547,1.80891928,16642.0,16641.0,0.72711632]
[1672615340806,1.80891928,16642.0,16641.0,0.05102063]
[1672615341567,1.80891928,16642.0,16641.0,0.75102063]
[1672615346412,0.10891928,16642.0,16641.0,0.75102063]
[1672615347616,0.10891928,16642.0,16641.0,0.05102063]
[1672615347872,1.80891928,16642.0,16641.0,0.05102063]
[1672615348607,1.80891928,16642.0,16641.0,0.75102063]
[1672615353740,3.07339872,16642.0,16641.0,0.75102063]
[1672615354718,3.07339872,16642.0,16641.0,0.05102063]
[1672615354962,2.46473803,16642.0,16641.0,0.05102063]
[1672615355477,1.80891928,16642.0,16641.0,0.05102063]
[1672615355724,1.80891928,16642.0,16641.0,0.75102063]
[1672615355985,0.65042793,16642.0,16641.0,1.49832936]
[1672615361706,0.65042793,16642.0,16641.0,0.79832936]
[1672615362696,0.65042793,16642.0,16641.0,1.49832936]
[1672615363501,0.65042793,16642.0,16641.0,1.49823325]
[1672615364325,0.10891928,16642.0,16641.0,2.26817658]
[1672615365653,0.5600725,16642.0,16641.0,2.26817658]
[1672615365897,0.10891928,16642.0,16641.0,2.26817658]
[1672615366157,0.56008454,16642.0,16641.0,2.26817658]
[1672615366677,0.56008454,16642.0,16641.0,2.11835325]
[1672615369303,0.920834,16642.0,16641.0,2.11835325]
[1672615369545,0.56008454,16642.0,16641.0,2.11835325]
[1672615369792,0.92083388,16642.0,16641.0,2.11835325]
[1672615373773,0.92083388,16642.0,16641.0,2.29945325]
[1672615376269,1.19127661,16642.0,16641.0,2.29945325]
[1672615376510,0.74011135,16642.0,16641.0,2.29945325]
[1672615377123,0.74011135,16642.0,16641.0,2.51863118]
[1672615377379,0.5596516,16642.0,16641.0,2.51863118]
[1672615385857,0.5596516,16642.0,16641.0,2.51851291]
[1672615390633,0.5596516,16642.0,16641.0,1.81851291]
[1672615390878,0.5596516,16642.0,16641.0,1.59933498]
[1672615391181,0.5596516,16642.0,16641.0,2.29933498]
[1672615391548,0.28920887,16642.0,16641.0,2.29933498]
[1672615393649,0.5596516,16642.0,16641.0,2.29933498]
[1672615394635,0.92039002,16642.0,16641.0,2.29933498]
[1672615394894,0.74011135,16642.0,16641.0,2.29933498]
[1672615395154,0.92039,16642.0,16641.0,2.29933498]
[1672615395897,0.92039,16642.0,16641.0,1.67921498]
[1672615396162,0.74011135,16642.0,16641.0,1.67921498]
[1672615396652,0.92040562,16642.0,16641.0,1.67921498]
[1672615397418,0.92040906,16642.0,16641.0,1.67921498]
[1672615397638,0.92040901,16642.0,16641.0,1.67921498]
[1672615398133,0.74011135,16642.0,16641.0,1.67921498]
[1672615399620,0.74011135,16642.0,16641.0,0.97921498]
[1672615401620,0.74011135,16642.0,16641.0,1.67921498]
[1672615401856,0.74011135,16642.0,16641.0,2.29933498]
[1672615402847,0.74011135,16642.0,16641.0,2.36982235]
[1672615404139,0.92083388,16642.0,16641.0,2.36982235]
[1672615404877,0.56008454,16642.0,16641.0,2.29933498]
[1672615405387,0.56008454,16642.0,16641.0,1.67921498]
[1672615407353,0.56008454,16642.0,16641.0,1.67914203]
[1672615412726,0.56008454,16642.0,16641.0,0.97914203]
[1672615413558,0.56008454,16642.0,16641.0,1.67914203]
[1672615417298,0.56008454,16642.0,16641.0,2.29926203]
[1672615418007,0.92105647,16642.0,16641.0,2.29926203]
[1672615421853,0.92105647,16642.0,16641.0,0.7507333]
[1672615421854,1.5910438,16642.0,16641.0,0.7507333]
[1672615422102,1.70947513,16642.0,16641.0,0.7507333]
[1672615422355,2.20905059,16642.0,16641.0,0.7507333]
[1672615422609,2.75028163,16642.0,16641.0,0.7507333]
[1672615423840,2.20905059,16642.0,16641.0,0.7507333]
[1672615424589,2.75006983,16642.0,16641.0,0.7507333]
[1672615424834,2.75006983,16642.0,16641.0,0.0507333]
[1672615429111,2.25049437,16642.0,16641.0,0.0507333]
[1672615431630,1.54993852,16642.0,16641.0,0.75066981]
[1672615431879,1.00891928,16642.0,16641.0,0.75066981]
[1672615439304,1.00891928,16642.0,16641.0,0.05066981]
[1672615440026,1.00891928,16642.0,16641.0,0.75066981]
[1672615440247,0.10891928,16642.0,16641.0,0.75066981]
[1672615445899,0.10891928,16642.0,16641.0,0.05066981]
[1672615447004,0.10891928,16642.0,16641.0,0.75066981]
[1672615448600,0.64993852,16642.0,16641.0,0.75066981]
[1672615452582,0.64993852,16642.0,16641.0,0.75056455]
[1672615453130,0.64993852,16642.0,16641.0,0.05056455]
[1672615453930,0.64993852,16642.0,16641.0,0.75056455]
[1672615455764,0.64993852,16642.0,16641.0,0.702]
[1672615456508,0.64993852,16642.0,16641.0,0.74038721]
[1672615459618,0.64993852,16642.0,16641.0,1.42102325]
[1672615459916,0.64993852,16642.0,16641.0,2.04114325]
[1672615460161,0.64993852,16642.0,16641.0,1.42102325]
[1672615463102,0.64993852,16642.0,16641.0,2.04114325]
[1672615463894,0.64993852,16642.0,16641.0,1.42102325]
[1672615464647,0.64993852,16642.0,16641.0,2.04114325]
[1672615465431,0.64993852,16642.0,16641.0,1.42102325]
[1672615465937,0.64993852,16642.0,16641.0,0.72102325]
[1672615468774,0.64993852,16642.0,16641.0,1.42102325]
[1672615469048,0.64993852,16642.0,16641.0,2.04114325]
[1672615470471,0.64993852,16642.0,16641.0,1.42102325]
[1672615471200,0.64993852,16642.0,16641.0,2.04114325]
[1672615472697,0.64993852,16642.0,16641.0,1.42102325]
[1672615472935,0.64993852,16642.0,16641.0,1.42094338]
[1672615473683,0.64993852,16642.0,16641.0,2.04106338]
[1672615474938,0.64993852,16642.0,16641.0,1.34106338]
[1672615475185,0.64993852,16642.0,16641.0,0.72094338]
[1672615475941,0.64993852,16642.0,16641.0,1.42094338]
[1672615476184,0.64993852,16642.0,16641.0,2.04106338]
[1672615483183,0.10891928,16642.0,16641.0,2.04106338]
[1672615483439,0.64993852,16642.0,16641.0,2.04106338]
[1672615484163,0.10891928,16642.0,16641.0,2.04106338]
[1672615486141,0.64993852,16642.0,16641.0,2.04106338]
[1672615486379,0.64993852,16642.0,16641.0,1.42094338]
[1672615492617,0.64993852,16642.0,16641.0,0.72094338]
[1672615493397,0.64993852,16642.0,16641.0,1.42094338]
[1672615495392,0.64993852,16642.0,16641.0,2.04106338]
[1672615495640,0.64993852,16642.0,16641.0,2.04094529]
[1672615495897,0.64993852,16642.0,16641.0,1.42082529]
[1672615496660,0.64993852,16642.0,16641.0,0.74018925]
[1672615498888,0.10891928,16642.0,16641.0,0.74018925]
[1672615501378,0.82367957,16642.0,16641.0,0.74018925]
[1672615502149,0.82367957,16642.0,16641.0,0.04018925]
[1672615502415,1.43234026,16642.0,16641.0,0.04018925]
[1672615506976,0.71757997,16642.0,16641.0,0.62346713]
[1672615507221,1.70891928,16642.0,16641.0,0.04018925]
[1672615511433,2.25006463,16642.0,16641.0,0.04018925]
[1672615511681,2.2500644,16642.0,16641.0,0.04018925]
[1672615513444,1.70891928,16642.0,16641.0,0.04018925]
[1672615514937,2.2500432,16642.0,16641.0,0.04018925]
[1672615515707,1.70891928,16642.0,16641.0,0.04018925]
[1672615515917,2.88018966,16642.0,16641.0,0.04018925]
[1672615516162,2.3806142,16642.0,16641.0,0.04018925]
[1672615516416,2.98927489,16642.0,16641.0,0.04018925]
[1672615516923,2.3806142,16642.0,16641.0,0.04018925]
[1672615518921,3.48885035,16642.0,16641.0,0.04018925]
[1672615519180,2.98927489,16642.0,16641.0,0.04018925]
[1672615519668,2.98918672,16642.0,16641.0,0.04018925]
[1672615523571,4.38876218,16642.0,16641.0,0.04018925]
[1672615523833,3.70816659,16642.0,16641.0,0.04018925]
[1672615524115,0.56626334,16641.0,16637.0,0.60971832]
[1672615524377,0.1806,16639.0,16638.0,0.7]
[1672615524627,0.67798586,16639.0,16638.0,0.7]
[1672615525173,0.67798586,16639.0,16637.0,0.60986832]
[1672615525407,2.14084229,16638.0,16637.0,0.60986832]
[1672615525699,2.63822815,16638.0,16637.0,0.60986832]
[1672615525923,2.14084229,16638.0,16637.0,0.00015]
[1672615526180,3.16721807,16638.0,16637.0,0.00015]
[1672615526457,3.12357578,16638.0,16637.0,0.00015]
[1672615526967,3.12357578,16638.0,16634.0,0.67971304]
[1672615527238,0.45073608,16636.0,16635.0,1.32646583]
[1672615527503,0.81105342,16636.0,16635.0,1.32646583]
[1672615527777,0.45073608,16636.0,16635.0,0.62646583]
[1672615528512,0.45073608,16636.0,16633.0,0.8975]
[1672615528754,0.63056422,16635.0,16634.0,1.35184786]
[1672615529260,0.45029901,16635.0,16634.0,0.65184786]
[1672615530025,0.94462142,16635.0,16634.0,0.65184786]
[1672615530279,0.58429901,16635.0,16634.0,0.65184786]
[1672615535793,0.3140572,16635.0,16634.0,0.65184786]
[1672615537520,0.3140572,16635.0,16633.0,0.96558586]
[1672615537768,0.3140572,16635.0,16633.0,0.4682]
[1672615538022,0.3140572,16635.0,16632.0,0.67858586]
[1672615538275,0.55411722,16635.0,16632.0,0.67858586]
[1672615538522,0.55411722,16635.0,16633.0,1.26383481]
[1672615538781,0.1800572,16635.0,16633.0,1.26383481]
[1672615539021,0.3140572,16635.0,16633.0,1.26383481]
[1672615539528,0.1800572,16635.0,16633.0,1.26383481]
[1672615539785,0.94281188,16635.0,16633.0,1.26383481]
[1672615540052,0.64527664,16634.0,16633.0,0.7]
[1672615540311,1.09557565,16634.0,16631.0,1.50449058]
[1672615540557,1.6,16633.0,16632.0,1.39480899]
[1672615540794,1.7800572,16633.0,16632.0,1.39480899]
[1672615541281,1.7800572,16633.0,16632.0,0.7]
[1672615541529,1.6,16633.0,16631.0,0.4768]
[1672615542015,1.6,16633.0,16631.0,0.67400096]
[1672615542016,1.7800572,16633.0,16631.0,0.67400096]
[1672615542971,0.1800572,16633.0,16631.0,0.67400096]
[1672615543459,1.27667565,16634.0,16631.0,0.67400096]
[1672615543954,0.72898514,16633.0,16631.0,0.67400096]
[1672615544221,0.86298514,16633.0,16631.0,0.67400096]
[1672615544465,0.72898514,16633.0,16631.0,0.67400096]
[1672615546762,0.86298514,16633.0,16631.0,0.67400096]
[1672615547723,0.134,16633.0,16631.0,0.67400096]
[1672615548204,0.18351572,16633.0,16631.0,1.17138682]
[1672615548440,0.134,16633.0,16631.0,0.67400096]
[1672615548687,0.134,16633.0,16631.0,0.67388414]
[1672615549178,0.134,16633.0,16632.0,1.1421762]
[1672615549414,0.134,16633.0,16632.0,2.1226962]
[1672615549661,0.134,16633.0,16632.0,2.4226962]
[1672615549897,0.56251911,16636.0,16633.0,1.868]
[1672615550145,0.58128524,16635.0,16634.0,0.62012]
[1672615550401,0.58128524,16635.0,16633.0,2.0482]
[1672615550646,0.58128524,16635.0,16634.0,0.62012]
[1672615551217,0.58128524,16635.0,16633.0,2.0482]
[1672615551481,0.60528524,16635.0,16634.0,0.009]
[1672615551733,0.024,16635.0,16634.0,0.74189588]
[1672615552249,0.45029901,16636.0,16634.0,0.73289588]
[1672615552496,0.024,16635.0,16634.0,0.73289588]
[1672615552748,0.45029901,16636.0,16634.0,0.73289588]
[1672615552749,1.17413514,16636.0,16634.0,0.73289588]
[1672615553038,0.024,16635.0,16634.0,0.74189588]
[1672615553277,1.17413514,16636.0,16634.0,0.73289588]
[1672615553794,1.55845755,16636.0,16634.0,0.73289588]
[1672615554026,0.1800572,16635.0,16634.0,0.74189588]
[1672615554277,0.2040572,16635.0,16634.0,0.74189588]
[1672615555020,0.1800572,16635.0,16634.0,0.73289588]
[1672615555262,0.1800572,16635.0,16634.0,0.74289588]
[1672615555518,0.45029901,16635.0,16634.0,0.73289588]
[1672615555776,0.47429901,16635.0,16634.0,0.74189588]
[1672615556766,0.45029901,16635.0,16634.0,0.73289588]
[1672615556977,0.47429901,16635.0,16634.0,0.74189588]
[1672615557687,0.47429901,16635.0,16634.0,0.73289588]
[1672615557936,0.45029901,16635.0,16634.0,0.73289588]
[1672615558183,0.47429901,16635.0,16634.0,0.73289588]
[1672615558440,0.45029901,16635.0,16634.0,0.73289588]
[1672615558687,0.47429901,16635.0,16634.0,0.74089588]
[1672615559442,0.65456422,16635.0,16634.0,0.74089588]
[1672615561281,0.83505849,16635.0,16634.0,0.74089588]
[1672615563367,0.47473608,16635.0,16634.0,0.74089588]
[1672615565336,0.024,16635.0,16634.0,0.74089588]
[1672615569568,0.024,16635.0,16634.0,0.69089588]
[1672615570067,0.024,16635.0,16634.0,1.39089588]
[1672615576609,0.024,16635.0,16634.0,0.69089588]
[1672615577127,0.024,16635.0,16634.0,1.39089588]
[1672615585470,0.56488329,16635.0,16634.0,1.39089588]
[1672615588952,0.56488329,16635.0,16634.0,0.69089588]
[1672615590079,0.56488329,16635.0,16634.0,1.39089588]
[1672615593271,0.56488329,16635.0,16634.0,1.39078137]
[1672615600820,0.56488329,16635.0,16634.0,0.69078137]
[1672615601836,0.56488329,16635.0,16634.0,1.39078137]
[1672615604248,1.23778935,16635.0,16634.0,0.708]
[1672615604502,2.22138176,16635.0,16634.0,0.008]
[1672615604745,1.61259487,16635.0,16634.0,0.008]
[1672615605558,2.22187883,16635.0,16634.0,0.008]
[1672615612673,2.10127883,16635.0,16634.0,0.008]
[1672615617243,2.10127883,16635.0,16634.0,0.00788648]
[1672615618583,1.27152329,16635.0,16634.0,0.00788648]
[1672615618841,0.66223933,16635.0,16634.0,0.00788648]
[1672615622069,1.20326147,16635.0,16634.0,0.00788648]
[1672615622607,0.66223933,16635.0,16634.0,0.00788648]
[1672615622861,1.2032804,16635.0,16634.0,0.00788648]
[1672615624134,0.66223933,16635.0,16634.0,0.00788648]
[1672615631981,1.27152329,16635.0,16634.0,0.00788648]
[1672615636970,1.76578883,16635.0,16634.0,0.00788648]
[1672615637696,1.27152329,16635.0,16634.0,0.00788648]
[1672615637697,1.27152329,16635.0,16634.0,0.00778431]
[1672615641290,0.66223933,16635.0,16634.0,0.00778431]
[1672615649778,1.27170935,16635.0,16634.0,0.00778431]
[1672615650034,1.27170935,16635.0,16634.0,0.61333893]
[1672615653503,1.27170935,16635.0,16634.0,0.66239825]
[1672615660038,0.63347002,16635.0,16634.0,0.66239825]
[1672615660871,0.024,16635.0,16634.0,0.66239825]
[1672615661895,1.524,16635.0,16634.0,0.05678354]
[1672615662677,0.024,16635.0,16634.0,0.05678354]
[1672615663350,0.71791943,16635.0,16634.0,0.05678354]
[1672615663676,1.32742085,16635.0,16634.0,0.05678354]
[1672615672750,1.32730906,16635.0,16634.0,0.05678354]
[1672615678787,1.32735159,16635.0,16634.0,0.05678354]
[1672615679296,0.71780764,16635.0,16634.0,0.05678354]
[1672615679787,1.32735925,16635.0,16634.0,0.05678354]
[1672615688662,1.2596691,16635.0,16634.0,0.75678354]
[1672615688918,1.2596691,16635.0,16634.0,1.32084597]
[1672615689197,0.56574967,16635.0,16634.0,1.32084597]
[1672615689471,0.56574967,16635.0,16634.0,1.85322762]
[1672615689707,0.56574967,16635.0,16634.0,1.85282426]
[1672615689708,0.02388821,16635.0,16634.0,1.85282426]
[1672615689964,0.02388821,16635.0,16634.0,1.37650018]
[1672615690475,0.56559515,16635.0,16634.0,1.85197183]
[1672615690725,0.56559515,16635.0,16634.0,1.37650018]
[1672615691731,0.56559515,16635.0,16634.0,1.85188362]
[1672615692501,0.56559515,16635.0,16634.0,1.85182726]
[1672615693010,0.56559515,16635.0,16634.0,1.37650018]
[1672615693523,0.56559515,16635.0,16634.0,1.85179597]
[1672615693748,0.56559515,16635.0,16634.0,1.37650018]
[1672615696771,0.56559515,16635.0,16634.0,1.37640165]
[1672615699536,1.18565286,16635.0,16634.0,0.75668501]
[1672615700167,1.18565286,16635.0,16634.0,0.05668501]
[1672615705220,1.18565286,16635.0,16634.0,0.75668501]
[1672615711032,1.18565286,16635.0,16634.0,0.05668501]
[1672615713496,0.64394592,16635.0,16634.0,0.05668501]
[1672615715022,1.18543621,16635.0,16634.0,0.05668501]
[1672615717700,0.64394592,16635.0,16634.0,0.05668501]
[1672615717951,1.18549489,16635.0,16634.0,0.05668501]
[1672615718468,1.18549486,16635.0,16634.0,0.05668501]
[1672615718715,0.64394592,16635.0,16634.0,0.05668501]
[1672615719739,0.64394592,16635.0,16634.0,0.05661571]
[1672615719962,1.18554969,16635.0,16634.0,0.05661571]
[1672615721236,0.64394592,16635.0,16634.0,0.05661571]
[1672615727887,1.25349753,16635.0,16634.0,0.05661571]
[1672615743934,1.25349753,16635.0,16634.0,0.05651347]
[1672615753550,0.64394592,16635.0,16634.0,0.05651347]
[1672615756004,1.25319063,16635.0,16634.0,0.05651347]
[1672615764150,0.64394592,16635.0,16634.0,0.05651347]
[1672615765670,0.64394592,16635.0,16634.0,0.04905932]
[1672615765671,0.62005771,16635.0,16634.0,0.04905932]
[1672615766165,0.64505771,16635.0,16634.0,0.05805932]
[1672615768538,0.64505771,16635.0,16634.0,0.05796448]
[1672615776080,0.64493827,16635.0,16634.0,0.05796448]
[1672615788428,0.025,16635.0,16634.0,0.05796448]
[1672615789183,0.07692655,16635.0,16634.0,0.05796448]
[1672615791296,1.57692655,16635.0,16634.0,0.05796448]
[1672615791482,2.07119209,16635.0,16634.0,0.05796448]
[1672615791702,3.38698863,16635.0,16634.0,0.05796448]
[1672615792981,2.49969209,16635.0,16634.0,0.05796448]
[1672615793233,2.19969209,16635.0,16634.0,0.05796448]
[1672615794258,2.83098129,16635.0,16634.0,0.05796448]
[1672615794515,2.20821575,16635.0,16634.0,0.05796448]
[1672615794768,0.70821575,16635.0,16634.0,0.05796448]
[1672615797986,0.70821575,16635.0,16634.0,0.05786531]
[1672615800405,1.31753882,16635.0,16634.0,0.05786531]
[1672615800915,0.70821575,16635.0,16634.0,0.67171908]
[1672615801166,0.70821575,16635.0,16634.0,1.29183908]
[1672615801739,0.70821575,16635.0,16634.0,0.67171908]
[1672615801984,0.56657899,16635.0,16634.0,1.29183908]
[1672615802490,0.56657899,16635.0,16634.0,0.67798531]
[1672615802748,0.56657899,16635.0,16634.0,0.05786531]
[1672615802749,1.32925847,16635.0,16634.0,0.05786531]
[1672615803040,1.21356004,16635.0,16634.0,0.75786531]
[1672615803273,1.21343731,16635.0,16634.0,1.37798531]
[1672615803813,1.21343731,16635.0,16634.0,0.75786531]
[1672615805416,0.56645626,16635.0,16634.0,0.75786531]
[1672615805899,0.56645626,16635.0,16634.0,1.99453676]
[1672615806150,0.02487727,16635.0,16634.0,1.99453676]
[1672615807148,0.56645626,16635.0,16634.0,1.99453676]
[1672615807405,0.56645626,16635.0,16634.0,1.37441676]
[1672615810610,0.02487727,16635.0,16634.0,1.37441676]
[1672615811402,0.02487727,16635.0,16634.0,0.75786531]
[1672615811668,0.02487727,16635.0,16634.0,0.05786531]
[1672615811952,0.68384172,16635.0,16634.0,0.05786531]
[1672615812487,0.02487727,16635.0,16634.0,0.05786531]
[1672615812736,1.26583472,16635.0,16634.0,0.75786531]
[1672615817433,0.56645626,16635.0,16634.0,0.75786531]
[1672615820495,1.13821231,16635.0,16634.0,0.75786531]
[1672615824909,1.13821231,16635.0,16634.0,0.75775425]
[1672615825162,0.56645626,16635.0,16634.0,0.75775425]
[1672615828622,0.62310189,16635.0,16634.0,0.75775425]
[1672615831202,0.62310189,16635.0,16634.0,0.05775425]
[1672615831710,0.62310189,16635.0,16634.0,0.75775425]
[1672615832487,0.0815229,16635.0,16634.0,0.75775425]
[1672615834423,0.69084597,16635.0,16634.0,0.75775425]
[1672615836172,0.0815229,16635.0,16634.0,0.75775425]
[1672615836695,0.69084597,16635.0,16634.0,0.75775425]
[1672615837706,0.69084597,16635.0,16634.0,0.05775425]
[1672615838768,0.69084597,16635.0,16634.0,0.75775425]
[1672615844562,0.69084597,16635.0,16634.0,0.05775425]
[1672615845654,0.69084597,16635.0,16634.0,0.75775425]
[1672615847593,0.69084597,16635.0,16634.0,0.75769126]
[1672615850896,0.02487727,16635.0,16634.0,1.31980811]
[1672615851618,0.02487727,16635.0,16634.0,0.61980811]
[1672615852130,0.02487727,16635.0,16634.0,1.31980811]
[1672615859567,0.02487727,16635.0,16634.0,0.61980811]
[1672615860538,0.02487727,16635.0,16634.0,1.31980811]
[1672615863979,0.56658069,16635.0,16634.0,1.31980811]
[1672615864237,0.56655573,16635.0,16634.0,1.31980811]
[1672615864485,0.02487727,16635.0,16634.0,1.31980811]
[1672615864729,0.56654892,16635.0,16634.0,1.31980811]
[1672615867749,0.02487727,16635.0,16634.0,1.31980811]
[1672615868733,0.56650588,16635.0,16634.0,1.31980811]
[1672615870323,0.56650588,16635.0,16634.0,1.31971829]
[1672615877101,0.56650588,16635.0,16634.0,0.61971829]
[1672615877814,0.56650588,16635.0,16634.0,1.31971829]
[1672615878769,0.02487727,16635.0,16634.0,1.31971829]
[1672615879574,0.56650588,16635.0,16634.0,1.31971829]
[1672615880046,0.02487727,16635.0,16634.0,1.31971829]
[1672615882065,0.02487727,16635.0,16634.0,1.93983829]
[1672615882840,0.02487727,16635.0,16634.0,1.31971829]
[1672615884399,0.56650588,16635.0,16634.0,1.31971829]
[1672615885386,0.56650588,16635.0,16634.0,0.61971829]
[1672615885627,0.56650588,16635.0,16634.0,0.75760144]
[1672615886522,1.30851124,16635.0,16634.0,0.75760144]
[1672615888378,0.56650588,16635.0,16634.0,0.75760144]
[1672615888623,0.56650588,16635.0,16634.0,1.32681062]
[1672615890889,0.02487727,16635.0,16634.0,0.75760144]
[1672615891109,0.72911447,16635.0,16634.0,1.37772144]
[1672615891360,0.72911447,16635.0,16634.0,0.75760144]
[1672615891866,0.72911447,16635.0,16634.0,0.75752494]
[1672615892351,0.72911447,16635.0,16634.0,0.99872494]
[1672615893092,0.72911447,16635.0,16634.0,1.61884494]
[1672615895232,0.72911447,16635.0,16634.0,0.99872494]
[1672615896187,0.56650588,16635.0,16634.0,0.99872494]
[1672615896934,0.56650588,16635.0,16634.0,1.53657148]
[1672615897150,0.56650588,16635.0,16634.0,0.83657148]
[1672615898154,0.56650588,16635.0,16634.0,1.53657148]
[1672615898775,0.02487727,16635.0,16634.0,1.61884494]
[1672615899041,0.47616803,16635.0,16634.0,1.89250209]
[1672615899363,0.47616803,16635.0,16634.0,3.94023151]
[1672615899364,0.65666096,16635.0,16634.0,3.94023151]
[1672615899571,0.20537999,16635.0,16634.0,3.94023151]
[1672615899839,0.02487727,16635.0,16634.0,3.86119547]
[1672615900699,0.18050272,16636.0,16634.0,3.8395471]
[1672615900907,0.63177085,16637.0,16635.0,3.29834025]
[1672615900908,0.81227357,16637.0,16635.0,3.29834025]
[1672615901174,0.81227357,16637.0,16636.0,0.49426554]
[1672615901425,0.63177085,16637.0,16636.0,1.47378554]
[1672615901682,0.63177085,16637.0,16636.0,1.91771226]
[1672615902191,0.45100355,16637.0,16636.0,2.61771226]
[1672615903424,0.45100355,16637.0,16636.0,2.7023019]
[1672615904421,0.52900355,16637.0,16636.0,2.7033019]
[1672615906932,0.25825195,16637.0,16636.0,2.7033019]
[1672615907194,0.25825195,16637.0,16636.0,3.0033019]
[1672615907458,0.25825195,16637.0,16636.0,2.7033019]
[1672615907680,0.25825195,16637.0,16636.0,3.0033019]
[1672615908218,0.25825195,16637.0,16636.0,3.1239019]
[1672615908984,0.18025195,16637.0,16636.0,3.1229019]
[1672615909200,0.18625195,16637.0,16636.0,3.1309019]
[1672615909946,0.18625195,16637.0,16636.0,2.8309019]
[1672615911189,0.18625195,16637.0,16636.0,3.1309019]
[1672615911451,0.006,16637.0,16636.0,3.1309019]
[1672615913451,0.006,16637.0,16636.0,3.0104019]
[1672615913965,0.006,16637.0,16636.0,2.56677518]
[1672615914203,0.006,16637.0,16636.0,3.17285363]
[1672615914455,0.006,16637.0,16636.0,3.19695203]
[1672615914708,0.006,16637.0,16636.0,3.22240783]
[1672615915203,0.006,16637.0,16636.0,3.28188891]
[1672615917512,0.006,16637.0,16636.0,3.19729927]
[1672615918292,0.00591805,16637.0,16636.0,3.19729927]
[1672615921708,0.00591805,16637.0,16636.0,2.49729927]
[1672615922716,0.00591805,16637.0,16636.0,3.19729927]
[1672615923970,0.00591805,16637.0,16636.0,3.07779927]
[1672615924227,0.00591805,16637.0,16636.0,2.75661314]
[1672615924442,0.00591805,16637.0,16636.0,2.72041777]
[1672615925954,0.00591805,16637.0,16636.0,3.02041777]
[1672615931264,0.00591805,16637.0,16636.0,2.36268554]
[1672615931501,0.00591805,16637.0,16636.0,2.97202285]
[1672615931738,0.00591805,16637.0,16636.0,3.14893846]
[1672615932634,0.00591805,16637.0,16636.0,3.14393846]
[1672615933579,0.00591805,16637.0,16636.0,2.96702285]
[1672615933849,0.00591805,16637.0,16636.0,2.84732285]
[1672615934793,0.00591805,16637.0,16636.0,2.22720285]
[1672615938189,0.18617,16637.0,16636.0,2.22720285]
[1672615939496,0.18617,16637.0,16636.0,1.73793731]